Cogmind - Beta 15 @@@ ROGUE MODE // 2025.05.23 @ 20:46:22 Player: Man of Plasma Result: Destroyed by 6J-JMB(R) with Subdweller Laser Performance ------------- Evolutions (0) 0 Regions Visited (2) 400 Robots Destroyed (6) 30 Value Destroyed (239) 239 Prototype IDs (0) 0 Alien Tech Used (0) 0 Bonus (0) 0 TOTAL SCORE: 669 Bonus ------- None Cogmind --------- Core Integrity 0/250 Matter 300/300 Energy 95/100 System Corruption 0% Temperature Cool (6) Movement Rolling (110) Location -10/Subcaves Parts ------- > --- POWER (1) -------- Subdweller Power Source > --- PROPULSION (2) --- Subdweller Monowheel > --- UTILITY (2) ------ Medium Storage Unit Subdweller Optics > --- WEAPON (2) ------- Makeshift Hammer > --- INVENTORY (10) --- Light Ion Engine Subdweller Power Source Subdweller Optics Subdweller Machine Gun Subdweller Machine Gun Flamer Peak State ------------ > --- POWER ------------ Subdweller Power Source > --- PROPULSION ------- Subdweller Monowheel Subdweller Monowheel > --- UTILITY ---------- Medium Storage Unit Subdweller Optics > --- WEAPON ----------- Subdweller Beam Cannon Makeshift Hammer > --- INVENTORY -------- Light Ion Engine Subdweller Power Source Subdweller Optics Subdweller Machine Gun Subdweller Machine Gun Flamer [Rating: 16] Favorites ----------- Power Subdweller Power Source Engine Subdweller Power Source Propulsion Light Treads Treads Light Treads Wheel Subdweller Monowheel Utility Medium Storage Unit Device Subdweller Optics Storage Medium Storage Unit Weapon Assault Rifle Energy Gun Subdweller Laser Energy Cannon Subdweller Beam Cannon Ballistic Gun Assault Rifle Impact Weapon Makeshift Hammer Build | -11 -10 -10 ------- Run | Yrd Mat Sub Slots Evolved . | . . . Power . | . . . Propulsion . | . . . Utility . | . . . Weapon . | . . . Parts Attached 18 | 8 1 9 Power 4 | 2 . 2 Engine 4 | 2 . 2 Core . | . . . Reactor . | . . . Propulsion 4 | 2 . 2 Treads 2 | 2 . . Leg . | . . . Wheel 2 | . . 2 Hover . | . . . Flight . | . . . Utility 3 | 1 1 1 Device 1 | . . 1 Storage 2 | 1 1 . Processor . | . . . Hackware . | . . . Protection . | . . . Artifact . | . . . Weapon 7 | 3 . 4 Energy Gun 1 | . . 1 Energy Cannon 1 | . . 1 Ballistic Gun 4 | 3 . 1 Ballistic Cannon . | . . . Launcher . | . . . Special Weapon . | . . . Impact Weapon 1 | . . 1 Slashing Weapon . | . . . Piercing Weapon . | . . . Special Melee Weapon . | . . . Unidentified Prototypes . | . . . Parts Lost 5 | . . 5 Power . | . . . Propulsion 3 | . . 3 Utility . | . . . Weapon 2 | . . 2 Highest Loss Streak 2 | . . 2 To Critical Strikes 1 | . . 1 Average Backups 4 | 1 2 5 Power 1 | . 1 1 Propulsion . | . . . Utility . | . . . Weapon 1 | . 1 1 Tool/Special . | . . . Unused Backups 4 | . . 4 Power . | . . . Propulsion . | . . . Utility 2 | . . 2 Weapon 2 | . . 2 Tool/Special . | . . . Average Slot Usage (%) 88 | . 88 88 Engine 14 | . 14 14 Treads 19 | . 28 17 Wheel 1 | . . 2 Device 10 | . . 12 Storage 15 | . 17 15 Energy Cannon 8 | . . 11 Ballistic Gun 16 | . 28 13 Peak Build Rating 16 | 6 7 16 Average Rating 9 | 4 6 10 On Entrance 4 | . 6 7 Naked Turns . | . . . Heaviest Build 29 | 14 24 29 Greatest Support 40 | 40 40 40 Greatest Overweight (x) 9 | 4 . 9 Average Overweight (x) . | . . . Largest Inventory Capacity 10 | 8 10 10 Average Capacity 9 | 7 8 10 Most Carried 10 | 2 3 10 Average Carried 6 | 1 2 7 Final Capacity 10 | 8 10 10 Final Carried 6 | 2 2 6 Class Distribution -------------------- 56% | Mutant 43% | Scavenger-Mutant Dominant Class ---------------- Mutant | -10/Materials Scavenger-Mutant | -10/Subcaves Resources | -11 -10 -10 ----------- Run | Yrd Mat Sub Matter Collected 447 | 183 . 264 Remotely . | . . . Salvage Created 265 | . . 265 Parts 10 | . . 10 Haulers Intercepted . | . . . Recyclers Shooed . | . . . Parts Field Recycled . | . . . Retrieved Matter . | . . . Parts Self-Destructed 5 | . . 5 Prevented . | . . . Kills | -11 -10 -10 ------- Run | Yrd Mat Sub Combat Hostiles Destroyed 6 | . . 6 Melee 2 | . . 2 Guns 3 | . . 3 Cannons 1 | . . 1 Classes Destroyed 3 | . . 3 Grunt 1 | . . 1 Sentry 1 | . . 1 Subdweller 4 | . . 4 Best Kill Streak 2 | . . 2 Combat Bots Only 2 | . . 2 Max Kills in Single Turn 1 | . . 1 Gunslinging . | . . . Exploded . | . . . Melee 1 | . . 1 Uniques/NPCs Destroyed . | . . . Combat | -11 -10 -10 -------- Run | Yrd Mat Sub Hostile Shots Fired 74 | . . 74 Missed 22 | . . 22 Hits 52 | . . 52 Projectile 52 | . . 52 AOE 4 | . . 4 Critical Strikes 1 | . . 1 Damage Taken 1265 | . . 1265 Core 268 | . . 268 Absorbed by Shields . | . . . Core Remaining (%) 100 | 100 . . Volleys Fired 20 | . 2 18 Largest 2 | . 2 2 Hottest 110 | . 40 110 Shots Fired 40 | . 4 36 Gun 32 | . 4 28 Cannon 8 | . . 8 Launcher . | . . . Special . | . . . Kinetic 29 | . 4 25 Thermal 11 | . . 11 Explosive . | . . . Electromagnetic . | . . . Robot Hit Streak 17 | . 3 17 Robot Miss Streak 3 | . 1 3 Penetration Max . | . . . Secondary Targets . | . . . Shots Hit Robots 32 | . 3 29 Core Hits 9 | . . 9 Critical Kills . | . . . Critical Parts Destroyed 1 | . . 1 Critical Strikes 1 | . . 1 Destroy 1 | . . 1 Melee Attacks 17 | . . 17 Impact 17 | . . 17 Slashing . | . . . Piercing . | . . . Sneak Attacks . | . . . Combat Hostiles . | . . . Follow-up Attacks . | . . . Damage Inflicted 799 | . 39 760 Guns 273 | . 39 234 Cannons 29 | . . 29 Explosions . | . . . Melee 497 | . . 497 Ramming . | . . . Kinetic 252 | . 39 213 Thermal 50 | . . 50 Explosive . | . . . Electromagnetic . | . . . Impact 497 | . . 497 Slashing . | . . . Piercing . | . . . Highest Corruption . | . . . Average Corruption . | . . . Corruption Purged . | . . . Corruption Blocked . | . . . Overload Shots . | . . . Overflow Damage 50 | . . 50 Projectiles . | . . . Explosions . | . . . Melee 50 | . . 50 Knockbacks 8 | . . 8 Impact 8 | . . 8 Kinetic . | . . . Secondary . | . . . Self-Inflicted Damage . | . . . Shots . | . . . Rammed . | . . . Targets Rammed . | . . . Kicked . | . . . Crushed . | . . . Highest Temperature 4 | . . 4 Average Temperature 2 | . . 2 Received Heat Transfer 291 | . . 291 Siege Activations . | . . . Martial Activations . | . . . Shielding Activations . | . . . Robots Disrupted . | . . . Combat Hostiles . | . . . Robots Corrupted . | . . . Combat Hostiles . | . . . Parts Fried . | . . . Impact Corruptions 4 | . . 4 Robots Melted . | . . . Combat Hostiles . | . . . Parts Melted 1 | . . 1 Heat Transferred 62 | . . 62 Parts Sabotaged . | . . . Parts Stolen . | . . . Parts Stripped . | . . . Power Chain Reactions . | . . . Alert | -11 -10 -10 ------- Run | Yrd Mat Sub Maximum Alert Level . | . . . Low Security (%) 100 | 100 100 . Level 1 . | . . . Level 2 . | . . . Level 3 . | . . . Level 4 . | . . . Level 5 . | . . . High Security . | . . . Max Security . | . . . Peak Influence . | . . . Initial . | . . . Average . | . . . Influence Increases 115 | . . 115 Destroy 0b10 Robot/C 40 | . . 40 Lose Combat Pursuer 75 | . . 75 Influence Decreases 115 | . . 115 Time Decay 95 | . . 95 Lost Part 20 | . . 20 Squads Dispatched . | . . . Investigation . | . . . Extermination . | . . . Reinforcement . | . . . Assault . | . . . Garrison . | . . . Intercept . | . . . Searches Triggered . | . . . Construction Impeded . | . . . Haulers Reinforced . | . . . Active Scanning Responses . | . . . Cargo Convoy Interrupts . | . . . Stealth | -11 -10 -10 --------- Run | Yrd Mat Sub Distress Signals . | . . . Communications Jammed . | . . . Distress Signals . | . . . Times Spotted 23 | . 2 21 Peak Tracking Total 10 | . 1 10 Tactical Retreats 3 | . . 3 Traps | -11 -10 -10 ------- Run | Yrd Mat Sub Traps Triggered . | . . . Indirectly . | . . . Trap Hack Attempts . | . . . Triggered . | . . . Disarmed . | . . . Reprogrammed . | . . . Reused . | . . . Traps Extracted . | . . . Installed . | . . . Triggered . | . . . Machines | -11 -10 -10 ---------- Run | Yrd Mat Sub Machines Disabled . | . . . Max in Single Turn . | . . . Machines Repaired . | . . . Machines Dismantled . | . . . Machines Sabotaged . | . . . Overloaded Fab Kills . | . . . Hacking | -11 -10 -10 --------- Run | Yrd Mat Sub Machines Accessed . | . . . Terminals . | . . . Fabricators . | . . . Repair Stations . | . . . Recycling Units . | . . . Scanalyzers . | . . . Garrison Access . | . . . Total Hacks . | . . . Successful . | . . . Failed . | . . . Catastrophic . | . . . Database Lockouts . | . . . Manual . | . . . Terminals . | . . . Fabricators . | . . . Repair Stations . | . . . Recycling Units . | . . . Scanalyzers . | . . . Garrison Access . | . . . Terminal Hacks . | . . . Fabricator Hacks . | . . . Repair Station Hacks . | . . . Recycling Unit Hacks . | . . . Scanalyzer . | . . . Garrison Access Hacks . | . . . Unauthorized Hacks . | . . . Terminals . | . . . Fabricators . | . . . Repair Stations . | . . . Recycling Units . | . . . Scanalyzers . | . . . Garrison Access . | . . . Data Cores Recovered . | . . . Used . | . . . Hacking Detections . | . . . Full Trace Events . | . . . Feedback Events . | . . . Feedback Blocked . | . . . Robot Schematics Acquired . | . . . Robots Built . | . . . Authchips . | . . . Time . | . . . Total Robot Build Rating . | . . . Part Schematics Acquired . | . . . Parts Built . | . . . Authchips . | . . . Time . | . . . Total Part Build Rating . | . . . Parts Repaired . | . . . Time . | . . . Parts Recycled . | . . . Recycled Matter . | . . . Retrieved Matter . | . . . Retrieved Components . | . . . Parts Scanalyzed . | . . . Part Schematics Acquired . | . . . Parts Damaged . | . . . Bothacking | -11 -10 -10 ------------ Run | Yrd Mat Sub Used RIF Installer . | . . . Robots Hacked . | . . . Non-combat . | . . . Combat . | . . . Robot Hacks Applied . | . . . Relay Couplers Released . | . . . Fabnet Peak Effective % . | . . . Robots Rewired . | . . . Allies Hacked . | . . . Hacks Repelled . | . . . Allies | -11 -10 -10 -------- Run | Yrd Mat Sub Total Allies . | . . . Largest Group . | . . . Highest-Rated Group . | . . . Highest-Rated Ally . | . . . Total Orders . | . . . Ally Attacks . | . . . Total Damage . | . . . Kills . | . . . Allies Corrupted . | . . . Allies Melted . | . . . Intel | -11 -10 -10 ------- Run | Yrd Mat Sub Active Infowar (turns) 875 | . . 875 Optics 875 | . . 875 Robot Analysis Total . | . . . Derelict Logs Recovered 2 | . . 2 Drone Launches . | . . . Drone Recoveries . | . . . Exploration | -11 -10 -10 ------------- Run | Yrd Mat Sub Turns Passed 1281 | 82 248 951 Spaces Moved 510 | 46 80 384 Core 17 | 15 . 2 Treads 466 | 31 80 355 Legs . | . . . Wheels 27 | . . 27 Hover . | . . . Flight . | . . . Fastest Speed 50 | 50 160 110 Average Speed 191 | 155 160 202 Slowest Speed 500 | 250 160 500 Overloaded Moves . | . . . Propulsion Burnouts . | . . . Robots Hopped . | . . . Potential Cave-ins 1 | . . 1 Cave-ins Triggered . | . . . Exploration Rate (%) 17 | 3 17 31 Regions Visited 2 Branch Regions 1 Pre-discovered Areas . | . . . Known Exits Taken . | . . . Unknown Exits Taken 2 | 1 1 . Scrap Searched . | . . . Spaces Dug 2 | . . 2 Terrain Destroyed 3 | . . 3 Melee . | . . . Projectile 3 | . . 3 AOE . | . . . Terrain Rammed . | . . . Walls Destroyed . | . . . Machines Disabled . | . . . Actions | -11 -10 -10 --------- Run | Yrd Mat Sub Total 754 | 53 196 505 Wait 164 | . 113 51 Move 508 | 45 79 384 Hop . | . . . Pick Up 16 | . 1 15 Fast Attach 6 | 6 . . Attach 4 | . 1 3 Detach . | . . . Swap 9 | 2 . 7 Drop 10 | . . 10 Fire 20 | . 2 18 Melee 17 | . . 17 Ram . | . . . Kick . | . . . Crush . | . . . Escape Stasis . | . . . Rewire . | . . . Trap . | . . . Miscellaneous . | . . . Route ------- -11/Scrapyard -10/Materials -10/Subcaves (discovered 1 exit: [*Mat]) History --------- Turn | Location | Event 30 | -11/Scrapyard | Discovered new exit (range 15) 83 | -11/Scrapyard | Entered Materials 224 | -10/Materials | Discovered new exit (range 9) 317 | -10/Materials | Build established: Mutant 331 | -10/Materials | Entered Subcaves 333 | -10/Subcaves | Learned 4 Materials zone layouts 481 | -10/Subcaves | Ambushed by Subdweller buried in earth 481 | -10/Subcaves | Ambushed by Subdweller buried in earth 485 | -10/Subcaves | Ambushed by Subdweller buried in earth 485 | -10/Subcaves | Discovered new exit (range 18) 825 | -10/Subcaves | Learned Materials terminal intel 898 | -10/Subcaves | Shifting Twisted Machinery released Sub. Machine Gun 900 | -10/Subcaves | Shifting Twisted Machinery released Mak. Hammer 936 | -10/Subcaves | Build established: Scavenger-Mutant 1095 | -10/Subcaves | Shifting Twisted Machinery released Flamer 1096 | -10/Subcaves | Shifting Twisted Machinery released Sub. Monowheel 1194 | -10/Subcaves | Core integrity fell below 50% 1253 | -10/Subcaves | Core integrity fell below 20% 1282 | -10/Subcaves | Destroyed by 6J-JMB(R) with Subdweller Laser Last Messages --------------- 01253_ 6J-JMB(R) IFF system glitched. 01255_ 6J-JMB(R) misfires. 01259_ LR-RI0(R) knocked back. 01262_ Critical hit (Destroy). 01262_ Sub. Monowheel destroyed. 01262_ LR-RI0(R) destroyed. 01266_ 6J-JMB(R) misfires. 01268_ Destroyed Sub. Power Source. 01268_ SO-DQA(R) system corrupted by crushing effect. 01268_ SO-DQA(R) knocked back. 01278_ 6J-JMB(R) misfires. 01279_ SO-DQA(R) IFF system glitched. 01280_ 6J-JMB(R) IFF system glitched. 01280_ Destroyed Sub. Monowheel. 01280_ SO-DQA(R) system corrupted by crushing effect. 01280_ SO-DQA(R) knocked back. 01282_ Subatomizers dissect the Sub. Machine Gun. Map ----- +----------------------------------------------------+ | ?## ##""###?????????????????????????????????????? | | ######" ###?????????????????????????????????????? | | #"" #?????????????????????????????????????? | | ##?????????????????????????????????????? | | #?????????????????????????????????????? | | #####?????????????????????????????????? | | ## =##????????????????????????????????? | | !&! #????????????????????????????????? | | ## ## ##???????????????????????????????? | | ?# ### #?######????????????????????????? | | ?## ### ## #????????????????????????? | | ??####### ### # #????????????????????????? | | ????????###?## ## ###???"??????????????????? | | ????????????# ## " ###""??????????????????? | | ????????????##### """ ""??????????????????? | | ????????????????#### """"" """??????????????????? | | ???????????????????## """##"""???????????????????? | | ????????????????????## "##???????????????????????? | | ?????????????????????# ###??????????????????????? | | ?????????????????????## ##?????????????????????? | | ??????????????????????## "#?????????????????????? | | ????????????????????###; [ #?????????????????????? | | ????????????????????#; [%*#?????????????????????? | | ?????????????????????# ##?????????????????????? | | ?????????????????????# ####""#????????????????? | | ?????????????????????## @"" ""#????????????????? | | ??????????????????????#R "" ""#????????????????? | | ????????????????????? R " #???????????????? | | ???????????????????# " #??????????????? | | ??????????????????# #??????????????? | | ?????????????????# ### #?????????????? | | ????????????????# ####??? #????????????? | | ????????????????# ##??????? #???????????? | | ????????????????## #????????? ???????????? | | ?????????????????###### #??????????????????????? | | ??????????????????????# #??????????????????????? | | ??????????????????????# ##??????????????????????? | | ??????????????????????# ????????????????????????? | | ??????????????????????## ????????????????????????? | | ???????????????????????##????????????????????????? | | ?????????????????????????????????????????????????? | | ?????????????????????????????????????????????????? | | ?????????????????????????????????????????????????? | | ?????????????????????????????????????????????????? | | ?????????????????????????????????????????????????? | | ?????????????????????????????????????????????????? | | ?????????????????????????????????????????????????? | | ?????????????????????????????????????????????????? | | ?????????????????????????????????????????????????? | | ?????????????????????????????????????????????????? | +----------------------------------------------------+ Best States ------------- Heat Dissipation 25 Energy Generation 15 Energy Capacity 250 Matter Stores 300 Matter Capacity 300 Sight Range 21 Terrain Scan Density 10 Evasion (%) 40 Recoil Reduction 2 Item Schematics ----------------- None Robot Schematics ------------------ None Fabricated ------------ Nothing Repaired ---------- Nothing Alien Tech Used ----------------- None Achievements -------------- None Challenges ------------ None Game ------ Seed MicrowarpImpactCompanion Manual? 0 Play Time 00:07:37 Cumulative 20.8 hours Start 2025.05.23 @ 20:38:33 End 2025.05.23 @ 20:46:22 Sessions 1 Manual Loads 0 Difficulty Rogue Special Mode None Game No. 34 Rogue 34 Adventurer 0 Explorer 0 Win Type - Total 0 Types 0/0/0/0/0/0/0/0/0/0 Lore% 21 Gallery% 27 Achievement% 23 Wizard Run 0 Options --------- Layout 1 ASCII 0 Keyboard 0 Movement Numpad Keybinds 0 Fullscreen 1 Font 24/Smallcaps Map View 50x35 Zoom Use 0% Tactical HUD 1 Map Filters NONE Filters NONE Steam 1 RUN: 7839f4b7-2dd2-46c7-a5b0-d90d800aa2db